bitfinex-derivatives/quotes_ETHF0:USTF0_20230830
["timestamp","ask_amount","ask_price","bid_price","bid_amount"]
[1693398561623,6.96092484,1719.6,1719.4,3.2078]
[1693398561821,6.96092484,1719.6,1719.4,4.64138176]
[1693398562328,5.71209291,1719.6,1719.4,6.91131824]
[1693398564334,6.92301353,1719.6,1719.4,6.91131824]
[1693398565838,5.71209291,1719.6,1719.4,6.91131824]
[1693398566432,5.24172372,1719.6,1719.4,6.91131824]
[1693398575943,5.24172372,1719.6,1719.5,3.2078]
[1693398577546,6.45264434,1719.6,1719.5,3.2078]
[1693398578341,1.21964434,1719.6,1719.5,3.2078]
[1693398578742,0.00872372,1719.6,1719.5,3.2078]
[1693398580946,1.21964434,1719.6,1719.5,3.2078]
[1693398582042,0.00872372,1719.6,1719.5,3.2078]
[1693398582245,0.00872372,1719.6,1719.5,8.4408]
[1693398590251,0.00872372,1719.6,1719.5,8.90830919]
[1693398590754,5.59211918,1719.9,1719.5,8.90830919]
[1693398590949,5.59211918,1719.9,1719.6,3.70351824]
[1693398591351,0.34167504,1719.9,1719.7,16.01432743]
[1693398591553,3.2078,1720.3,1719.8,3.70351824]
[1693398591755,5.233,1720.0,1719.9,3.2078]
[1693398592053,5.233,1720.2,1719.9,6.91131824]
[1693398594659,5.24170317,1720.2,1719.9,6.91131824]
[1693398595562,5.24170317,1720.2,1719.9,6.92003892]
[1693398601162,0.00870317,1720.2,1720.0,5.233]
[1693398601366,6.45262379,1720.2,1719.9,3.21652068]
[1693398601965,6.45262379,1720.2,1720.0,3.70351824]
[1693398603770,6.45262379,1720.2,1719.9,3.21652068]
[1693398604068,6.45262379,1720.2,1720.0,3.70351824]
[1693398604870,0.03791131,1720.1,1719.9,3.21652068]
[1693398605073,6.44392062,1720.0,1719.9,0.00872068]
[1693398605564,6.44392062,1720.0,1719.9,4.65010244]
[1693398605768,5.233,1720.0,1719.9,4.65010244]
[1693398606169,5.233,1720.1,1719.9,4.65010244]
[1693398606372,5.233,1720.1,1720.0,2.26993648]
[1693398608271,0.00870317,1720.2,1720.0,20.23228675]
[1693398608470,5.233,1720.7,1720.1,9.87438176]
[1693398608666,5.233,1720.7,1720.4,3.2078]
[1693398608874,5.233,1720.7,1720.4,5.47773648]
[1693398609070,4.6516,1720.7,1720.5,1.43358176]
[1693398609266,5.233,1720.7,1720.5,1.43358176]
[1693398609677,5.233,1720.6,1720.4,2.26993648]
[1693398609973,5.233,1720.6,1720.2,8.4408]
[1693398610276,5.233,1720.6,1720.2,10.71073648]
[1693398610978,0.03791131,1720.5,1720.2,10.71073648]
[1693398611175,5.233,1720.3,1720.2,5.47773648]
[1693398611577,5.233,1720.3,1720.2,6.91131824]
[1693398611876,5.233,1720.4,1720.2,6.91131824]
[1693398612278,6.44392062,1720.4,1720.2,6.91131824]
[1693398613086,5.233,1720.4,1720.2,6.91131824]
[1693398614590,6.44392062,1720.4,1720.2,4.64138176]
[1693398614783,0.03791131,1720.3,1720.2,3.2078]
[1693398615387,0.03791131,1720.3,1720.1,5.233]
[1693398615589,0.03791131,1720.3,1720.1,6.66658176]
[1693398616186,6.44392062,1720.2,1720.1,1.43358176]
[1693398616392,6.44392062,1720.2,1720.0,4.3704]
[1693398616693,6.44392062,1720.2,1720.0,5.80398176]
[1693398616887,5.233,1720.2,1720.0,5.80398176]
[1693398617391,5.233,1720.2,1720.1,2.26993648]
[1693398617592,5.233,1720.4,1720.1,7.50293648]
[1693398617791,5.233,1720.4,1720.2,4.64138176]
[1693398618892,5.233,1720.4,1720.2,1.43358176]
[1693398619096,6.48183193,1720.4,1720.2,1.43358176]
[1693398619295,5.233,1720.4,1720.3,2.26993648]
[1693398620094,6.44392062,1720.4,1720.3,2.26993648]
[1693398621196,5.233,1720.4,1720.3,2.26993648]
[1693398621898,5.7067047,1720.5,1720.3,2.26993648]
[1693398622088,5.7067047,1720.5,1720.4,1.43358176]
[1693398622291,6.91762532,1720.5,1720.4,1.43358176]
[1693398623096,6.91762532,1720.5,1720.3,2.26993648]
[1693398623290,6.91762532,1720.5,1720.2,8.4408]
[1693398623491,6.91762532,1720.5,1720.3,1.43358176]
[1693398623893,0.03791131,1720.4,1720.2,10.71073648]
[1693398624099,6.44392062,1720.3,1720.2,3.2078]
[1693398626096,6.44392062,1720.3,1720.0,4.3704]
[1693398626297,5.27091131,1720.2,1720.0,4.3704]
[1693398626496,5.27091131,1720.2,1720.0,5.80398176]
[1693398627197,0.03791131,1720.2,1720.0,11.03698176]
[1693398631201,6.44392062,1720.3,1720.0,11.03698176]
[1693398631497,5.233,1720.3,1720.1,2.26993648]
[1693398631697,5.233,1720.3,1720.2,4.64138176]
[1693398631895,5.7067047,1720.5,1720.2,9.87438176]
[1693398632100,5.7067047,1720.5,1720.3,2.26993648]
[1693398632299,5.7067047,1720.5,1720.4,1.43358176]
[1693398633397,6.91762532,1720.5,1720.4,1.43358176]
[1693398633597,5.7067047,1720.5,1720.4,1.43358176]
[1693398633992,5.233,1720.5,1720.4,1.43358176]
[1693398635498,5.7044338,1720.7,1720.4,17.55824335]
[1693398635698,5.233,1720.7,1720.5,2.26993648]
[1693398635901,5.233,1720.7,1720.6,1.43358176]
[1693398636202,6.44392062,1720.7,1720.5,2.26993648]
[1693398636403,6.44392062,1720.7,1720.5,3.70351824]
[1693398637002,5.233,1720.7,1720.5,3.70351824]
[1693398639605,6.44392062,1720.7,1720.5,3.70351824]
[1693398644608,5.233,1720.7,1720.5,3.70351824]
[1693398644914,0.46050459,1720.8,1720.6,8.4408]
[1693398645114,9.31305321,1721.0,1720.7,8.93651824]
[1693398645314,6.10525321,1721.0,1720.7,16.34290193]
[1693398646513,5.233,1721.0,1720.7,16.34290193]
[1693398647917,5.70246936,1721.0,1720.7,16.34290193]
[1693398652320,1.21092062,1720.9,1720.7,16.34290193]
[1693398653117,5.70246936,1721.0,1720.7,16.34290193]
[1693398658931,2.28128088,1720.8,1720.7,16.34290193]
[1693398663724,3.04170784,1720.9,1720.7,16.34290193]
[1693398663725,3.04151026,1720.9,1720.7,16.34290193]
[1693398663923,2.28113269,1720.8,1720.7,16.34290193]
[1693398665421,0.46946936,1721.0,1720.7,16.34290193]
[1693398665620,5.233,1721.1,1720.7,16.34290193]
[1693398666926,5.27091131,1721.1,1720.7,16.34290193]
[1693398669123,5.72764632,1721.1,1720.7,16.34290193]
[1693398669526,2.2810839,1720.8,1720.7,16.34290193]
[1693398674528,3.52991583,1720.8,1720.6,8.90357955]
[1693398674724,1.52135886,1720.7,1720.6,8.90357955]
[1693398674924,1.52135886,1720.7,1720.6,10.33716131]
[1693398677518,3.80244276,1720.7,1720.6,10.33716131]
[1693398678319,1.52135886,1720.7,1720.6,17.72963728]
[1693398680431,3.49200452,1720.7,1720.6,16.29605552]
[1693398680635,2.2810839,1720.7,1720.6,17.72963728]
[1693398683846,3.49200452,1720.7,1720.6,16.29605552]
[1693398684738,3.49200452,1720.7,1720.6,17.72963728]
[1693398684944,4.25236582,1720.7,1720.6,17.72963728]
[1693398687150,4.25236582,1720.7,1720.5,9.01940868]
[1693398687357,4.25236582,1720.7,1720.4,7.46405008]
[1693398687358,8.31235651,1720.6,1720.4,7.46405008]
[1693398687641,6.53847744,1720.5,1720.4,5.19220487]
[1693398687850,6.53847744,1720.5,1720.4,4.72236347]
[1693398688648,6.53847744,1720.5,1720.4,7.62922153]
[1693398689043,6.53847744,1720.5,1720.4,4.72236347]
[1693398689546,6.53847744,1720.5,1720.3,10.18180868]
[1693398689750,6.53847744,1720.5,1720.4,1.51456347]
[1693398689945,6.53847744,1720.5,1720.3,10.18180868]
[1693398690146,2.28666164,1720.4,1720.3,10.18180868]
[1693398690352,1.74337295,1720.4,1720.3,14.52227287]
[1693398690550,0.03791131,1720.4,1720.3,13.0077094]
[1693398690750,5.99508875,1720.5,1720.3,13.0077094]
[1693398691043,5.99508875,1720.5,1720.4,1.51881329]
[1693398691250,5.41388875,1720.5,1720.4,1.51881329]
[1693398691551,4.78416813,1720.5,1720.4,1.51881329]
[1693398692044,4.25148876,1720.5,1720.4,1.51881329]
[1693398692350,4.25148876,1720.5,1720.3,10.45724026]
[1693398692951,4.25148876,1720.5,1720.3,8.18539505]
[1693398698147,1.57228037,1720.3,1720.2,8.7960644]
[1693398698352,1.57228037,1720.3,1720.2,10.22964616]
[1693398698842,1.57228037,1720.3,1720.2,8.7960644]
[1693398699648,0.99098037,1720.3,1720.2,8.7960644]
[1693398700056,0.40968037,1720.3,1720.2,8.7960644]
[1693398700552,5.06138037,1720.4,1720.2,8.7960644]
[1693398700754,5.06138037,1720.4,1720.2,5.88901329]
[1693398700955,4.48008037,1720.4,1720.2,5.88901329]
[1693398702052,5.233,1720.3,1720.2,5.88901329]
[1693398702250,4.7745,1720.3,1720.2,4.72661329]
[1693398703656,5.233,1720.3,1720.2,4.72661329]
[1693398703852,5.233,1720.3,1720.2,3.2078]
[1693398705454,5.233,1720.3,1720.2,4.64138176]
[1693398709051,5.233,1720.3,1720.2,3.2078]
[1693398709653,5.233,1720.3,1720.1,2.26993648]
[1693398709957,5.233,1720.2,1720.0,3.14680977]
[1693398711453,5.233,1720.2,1720.0,4.25615498]
[1693398711657,5.233,1720.2,1720.0,1.98430977]
[1693398715561,5.233,1720.2,1720.0,4.25424625]
[1693398715960,5.233,1720.2,1720.0,1.98430977]
[1693398716553,8.4408,1720.2,1720.0,1.98430977]
[1693398716762,3.2078,1720.2,1719.9,9.03237918]
[1693398717063,5.233,1720.2,1719.9,6.76053397]
[1693398717262,8.4408,1720.2,1719.9,7.21576292]
[1693398719363,8.4408,1720.2,1719.9,9.48760813]
[1693398719558,8.4408,1720.2,1719.9,7.21576292]
[1693398721059,5.233,1720.2,1720.0,6.16019505]
[1693398721260,5.233,1720.2,1720.0,6.5526777]
[1693398721961,5.233,1720.3,1720.0,11.7856777]
[1693398726762,5.233,1720.3,1720.0,11.39319505]
[1693398727456,3.51241496,1720.4,1720.1,15.38072541]
[1693398727663,0.46896824,1720.4,1720.3,5.233]
[1693398727965,3.04344672,1720.5,1720.3,7.50293648]
[1693398729872,3.04344672,1720.5,1720.3,5.233]
[1693398730468,3.04344672,1720.5,1720.2,1.43358176]
[1693398730469,5.233,1720.4,1720.2,1.43358176]
[1693398730764,5.233,1720.4,1720.1,9.0236585]
[1693398731368,8.27644672,1720.4,1720.1,6.75181329]
[1693398733567,8.27644672,1720.4,1720.1,9.02174977]
[1693398733767,8.27644672,1720.4,1720.2,1.43358176]
[1693398733972,8.27644672,1720.4,1720.1,9.02174977]
[1693398734772,8.27644672,1720.4,1720.2,1.51881329]
[1693398738369,8.27644672,1720.4,1720.2,2.95239505]
[1693398738870,8.27644672,1720.4,1720.3,7.50293648]
[1693398738871,3.04344672,1720.4,1720.3,7.50293648]
[1693398739170,3.04344672,1720.4,1720.3,5.233]
[1693398739376,3.04344672,1720.4,1720.2,2.95239505]
[1693398739377,8.27644672,1720.4,1720.2,2.95239505]
[1693398739572,8.27644672,1720.4,1720.2,3.78874977]
[1693398739876,3.04344672,1720.3,1720.2,1.51881329]
[1693398740477,8.27644672,1720.4,1720.2,1.51881329]
[1693398740770,3.04344672,1720.3,1720.2,1.51881329]
[1693398741770,3.04344672,1720.3,1720.1,9.0236585]
[1693398741974,3.04344672,1720.3,1720.2,1.43358176]
[1693398742275,3.04344672,1720.3,1720.1,9.0236585]
[1693398742476,3.04344672,1720.3,1720.1,10.45724026]
[1693398743073,3.04344672,1720.3,1720.2,1.51881329]
[1693398743975,3.04344672,1720.3,1720.1,9.0236585]
[1693398744180,3.04344672,1720.3,1720.1,10.45724026]
[1693398744478,3.04344672,1720.3,1720.1,10.9204192]
[1693398744880,3.04344672,1720.3,1720.2,1.51881329]
[1693398748785,3.04344672,1720.3,1720.2,4.425965]
[1693398752390,3.04344672,1720.3,1720.2,8.12948324]
[1693398752990,3.04344672,1720.3,1720.2,10.40132845]
[1693398755688,5.69101597,1720.4,1720.2,3.70351824]
[1693398755890,7.31954661,1720.4,1720.2,18.85290484]
[1693398756093,3.50758514,1720.4,1720.3,4.42758155]
[1693398756781,3.50758514,1720.4,1720.3,1.520588]
[1693398757593,3.04956917,1720.4,1720.3,1.520588]
[1693398758588,0.81525827,1720.4,1720.3,1.520588]
[1693398759492,0.81525827,1720.4,1720.2,12.24227001]
[1693398759691,2.28672133,1720.3,1720.2,12.24227001]
[1693398759882,2.28672133,1720.3,1720.2,15.14925155]
[1693398760082,2.28672133,1720.3,1720.2,16.58283331]
[1693398761290,2.28672133,1720.3,1720.2,15.14925155]
[1693398761489,2.28672133,1720.3,1720.2,16.58283331]
[1693398761793,2.28672133,1720.3,1720.2,9.91625155]
[1693398761987,2.28672133,1720.3,1720.2,11.34983331]
[1693398762193,6.04825827,1720.4,1720.2,7.63536954]
[1693398762387,9.04401579,1720.4,1720.2,4.72827852]
[1693398763897,5.233,1720.4,1720.3,1.52047852]
[1693398767291,9.04401579,1720.4,1720.2,7.0089963]
[1693398768498,9.04401579,1720.4,1720.3,1.52047852]
[1693398769698,9.51445353,1720.4,1720.3,1.52047852]
[1693398770695,9.51445353,1720.4,1720.2,1.52047852]
[1693398770898,9.04401579,1720.3,1720.2,1.52047852]
[1693398771897,9.04401579,1720.3,1720.1,3.8011963]
[1693398772096,5.233,1720.2,1720.1,6.70853504]
[1693398772500,5.233,1720.2,1720.1,3.8011963]
[1693398774000,5.233,1720.2,1720.1,6.70853504]
[1693398774400,5.233,1720.2,1720.1,3.8011963]
[1693398776798,5.233,1720.2,1720.1,4.42781726]
[1693398776998,5.233,1720.2,1720.1,1.52047852]
[1693398778800,5.233,1720.2,1720.1,3.8011963]
[1693398779101,5.233,1720.2,1720.1,1.52047852]
[1693398785510,5.233,1720.2,1720.1,3.8011963]
[1693398785906,5.233,1720.2,1720.1,1.52047852]
[1693398786811,7.6954,1720.2,1720.1,1.52047852]
[1693398788312,8.16274275,1720.2,1720.1,1.52047852]
[1693398788511,11.2120312,1720.2,1720.1,1.52047852]
[1693398794022,11.2120312,1720.2,1720.0,6.70851518]
[1693398794223,2.28658878,1720.1,1720.0,6.70851518]
[1693398800031,7.51958878,1720.1,1720.0,4.4277974]
[1693398800229,9.92768878,1720.1,1720.0,4.4277974]
[1693398802126,9.92768878,1720.1,1720.0,6.70851518]
[1693398803835,9.92768878,1720.1,1720.0,5.18803666]
[1693398804333,8.28228845,1720.1,1720.0,1.52098026]
[1693398804634,16.69271579,1720.1,1719.9,0.00872068]
[1693398804834,8.28208267,1720.0,1719.9,0.00872068]
[1693398805030,10.81748267,1720.0,1719.9,0.00872068]
[1693398805332,14.02528267,1720.0,1719.9,0.00872068]
[1693398819943,14.47982917,1720.0,1719.9,0.00872068]
[1693398823446,15.24176229,1720.0,1719.6,6.48828026]
[1693398823648,6.75562272,1719.7,1719.6,4.9673]
[1693398824148,6.75562272,1719.7,1719.5,3.80169804]
[1693398824443,5.233,1719.6,1719.5,2.28071778]
[1693398824642,5.233,1719.6,1719.5,5.1887713]
[1693398824849,5.233,1719.6,1719.5,5.65713684]
[1693398825044,5.233,1719.6,1719.5,7.0907186]
[1693398828644,5.233,1719.6,1719.5,5.65713684]
[1693398829547,5.233,1719.7,1719.5,7.0907186]
[1693398829738,5.233,1719.7,1719.6,4.42755822]
[1693398829942,5.233,1719.7,1719.6,4.79500384]
[1693398830349,5.233,1719.7,1719.6,4.42755822]
[1693398831452,5.233,1719.7,1719.6,1.51959669]
[1693398831952,6.76434568,1719.8,1719.6,1.51959669]
[1693398832546,6.76434568,1719.8,1719.7,3.70351824]
[1693398834753,1.53134568,1719.8,1719.7,3.70351824]
[1693398834953,1.53134568,1719.8,1719.7,8.93651824]
[1693398835156,1.52262272,1720.0,1719.7,22.80483694]
[1693398835357,1.52262272,1720.0,1719.9,4.72691499]
[1693398835560,0.94112272,1720.0,1719.9,8.43043323]
[1693398835848,0.94112272,1720.0,1719.9,6.91131824]
[1693398836054,0.94112272,1720.0,1719.9,8.43043323]
[1693398837359,2.28393408,1720.1,1719.9,8.43043323]
[1693398839657,10.72473408,1720.2,1719.9,8.43043323]
[1693398842255,2.28393408,1720.1,1719.9,8.43043323]
[1693398845071,2.28393408,1720.1,1719.9,4.72691499]
[1693398845271,5.233,1720.0,1719.9,4.72691499]
[1693398845570,5.233,1720.0,1719.9,7.63441769]
[1693398845771,10.3066,1720.0,1719.9,7.63441769]
[1693398846567,10.3066,1720.0,1719.9,4.72691499]
[1693398848273,12.59053408,1720.0,1719.9,4.72691499]
[1693398849676,12.59053408,1720.0,1719.9,6.16049675]
[1693398854678,10.3066,1720.0,1719.9,6.16049675]
[1693398857877,2.28393408,1720.1,1719.9,18.90225472]
[1693398858082,13.29414544,1720.2,1720.0,4.18777302]
[1693398858083,12.53283408,1720.2,1720.0,4.18777302]
[1693398858274,12.53283408,1720.2,1720.1,1.43358176]
[1693398861673,9.93023408,1720.2,1720.1,1.43358176]
[1693398861884,9.93023408,1720.2,1720.1,4.64138176]
[1693398861885,4.69723408,1720.2,1720.1,4.64138176]
[1693398863787,2.28393408,1720.2,1720.1,4.64138176]
[1693398871697,2.28393408,1720.2,1720.1,5.09810332]
[1693398875601,8.47370636,1720.3,1720.1,5.09810332]
[1693398876297,3.04524544,1720.2,1720.1,5.09810332]
[1693398877005,2.28539197,1720.2,1720.1,5.09810332]
[1693398877398,2.28539197,1720.2,1720.1,6.61721831]
[1693398878300,2.28539197,1720.2,1720.1,9.52448048]
[1693398880405,3.04524544,1720.2,1720.1,11.80519826]
[1693398880612,8.47370636,1720.3,1720.1,11.80519826]
[1693398880799,8.47370636,1720.3,1720.1,8.89793609]
[1693398881797,8.47370636,1720.3,1720.2,2.62556022]
[1693398882609,8.47370636,1720.3,1720.2,2.26993648]
[1693398886409,8.47783907,1720.3,1720.2,2.26993648]
[1693398889507,8.47783907,1720.3,1720.1,8.90066237]
[1693398889811,8.28237815,1720.2,1720.1,4.72882362]
[1693398890711,8.28237815,1720.2,1720.0,3.80255905]
[1693398890904,8.28258431,1720.1,1720.0,1.52102362]
[1693398891209,8.28258431,1720.1,1720.0,4.42852874]
[1693398891408,13.40108431,1720.1,1720.0,4.42852874]
[1693398891912,13.40108431,1720.1,1720.0,1.52102362]
[1693398893114,13.40111964,1720.1,1720.0,1.52138737]
[1693398895814,14.16352455,1720.1,1719.9,1.99532774]
[1693398896109,3.0498158,1720.0,1719.9,1.99532774]
[1693398896412,3.0498158,1720.0,1719.9,4.90295968]
[1693398898417,13.4013158,1720.1,1719.9,8.6186225]
[1693398898718,13.4013158,1720.1,1719.9,5.71099056]
[1693398899017,13.4013158,1720.1,1720.0,1.52138737]
[1693398901420,8.1683158,1720.1,1720.0,3.79132385]
[1693398901620,8.1683158,1720.1,1720.0,6.69881196]
[1693398902021,7.40560464,1720.1,1720.0,7.45950565]
[1693398902219,4.90240464,1720.1,1720.0,7.45950565]
[1693398902621,10.6877158,1720.2,1720.0,8.98008455]
[1693398902816,10.6877158,1720.2,1720.1,2.95416066]
[1693398902817,13.2631158,1720.2,1720.1,2.95416066]
[1693398905731,13.2631158,1720.2,1720.1,2.95414858]
[1693398905732,13.2628965,1720.2,1720.1,2.95414858]
[1693398908228,13.2628965,1720.2,1720.1,1.43358176]
[1693398908422,13.2628965,1720.2,1720.1,2.95414858]
[1693398909331,13.2628965,1720.2,1720.1,1.43358176]
[1693398909531,8.0298965,1720.2,1720.1,1.43358176]
[1693398909836,8.0298965,1720.2,1720.1,2.95414858]
[1693398910531,8.0298965,1720.2,1720.1,1.43358176]
[1693398910732,8.0298965,1720.2,1720.1,2.95414858]
[1693398911538,8.0298965,1720.2,1720.1,1.43358176]
[1693398914141,8.0298965,1720.2,1720.1,2.95414858]
[1693398916241,8.0298965,1720.2,1720.1,1.52056682]
[1693398919739,8.79229563,1720.2,1720.0,3.92026682]
[1693398919930,3.04978164,1720.1,1720.0,3.92026682]
[1693398920135,3.04978164,1720.1,1720.0,8.26131646]
[1693398920336,3.04978164,1720.1,1720.0,5.86161646]
[1693398922241,3.04978164,1720.1,1720.0,2.95414858]
[1693398923546,3.04978164,1720.1,1720.0,1.52056682]
[1693398924641,3.04978164,1720.1,1719.9,9.03441705]
[1693398925544,3.04978164,1720.0,1719.9,1.52056682]
[1693398925744,3.04978164,1720.0,1719.9,5.86174694]
[1693398925939,7.90738164,1720.0,1719.9,5.86174694]
[1693398927350,7.90738164,1720.0,1719.9,4.42816518]
[1693398927541,7.90738164,1720.0,1719.9,6.70901541]
[1693398927741,7.90738164,1720.0,1719.9,4.42816518]
[1693398928244,7.90738164,1720.0,1719.9,5.86174694]
[1693398929144,7.90738164,1720.0,1719.9,8.14259717]
[1693398929351,7.14491412,1720.0,1719.9,6.62203035]
[1693398930647,7.14491412,1720.0,1719.9,5.18844859]
[1693398930848,7.14491412,1720.0,1719.9,6.62203035]
[1693398931653,7.14491412,1720.0,1719.9,5.18844859]
[1693398931954,7.14809968,1720.0,1719.9,5.18844859]
[1693398935754,4.86078556,1720.0,1719.9,5.18844859]
[1693398937562,7.9105672,1720.0,1719.9,6.71019817]
[1693398942163,7.9105672,1720.0,1719.9,4.42934794]
[1693398942864,7.9105672,1720.0,1719.9,6.71019817]
[1693398944468,7.14840024,1720.0,1719.9,5.18844859]
[1693398945065,7.9105672,1720.0,1719.9,5.18844859]
[1693398950665,7.9105672,1720.0,1719.9,3.80261611]
[1693398950870,7.9105672,1720.0,1719.9,6.71021447]
[1693398956373,5.4451672,1720.0,1719.9,6.71021447]
[1693398956678,9.04818119,1720.0,1719.8,1.52176588]
[1693398956976,12.25328259,1719.9,1719.7,1.52176588]
[1693398957168,8.2830642,1719.8,1719.7,1.52176588]
[1693398957676,8.2830642,1719.8,1719.6,1.52176588]
[1693398957677,10.4163,1719.8,1719.6,1.52176588]
[1693398957877,7.51995182,1719.7,1719.6,1.52176588]
[1693398958873,7.52310231,1719.7,1719.6,1.52176588]
[1693398959470,5.23615049,1719.7,1719.6,1.52176588]
[1693398959871,7.52219757,1719.7,1719.5,3.80261611]
[1693398960377,1.52403307,1719.6,1719.5,6.71079012]
[1693398960775,6.45292104,1719.6,1719.5,6.71079012]
[1693398961077,4.92888797,1719.6,1719.5,1.52176588]
[1693398961880,10.16188797,1719.6,1719.5,1.52176588]
[1693398962677,10.16149293,1719.6,1719.5,1.52115925]
[1693398965181,11.68504242,1719.6,1719.5,1.52115925]
[1693398966779,9.39939038,1719.6,1719.5,1.52115925]
[1693398969485,9.39939038,1719.6,1719.4,1.99720225]
[1693398969783,6.75654949,1719.5,1719.4,1.99720225]
[1693398970083,5.233,1719.5,1719.4,1.99720225]
[1693398970287,7.8231,1719.5,1719.4,1.99720225]
[1693398970880,7.82624945,1719.5,1719.4,1.99720225]
[1693398974583,7.82624945,1719.5,1719.4,0.476043]
[1693398974787,12.55759894,1719.5,1719.4,0.476043]
[1693398975089,11.03404945,1719.5,1719.4,0.476043]
[1693398978683,16.26704945,1719.5,1719.1,6.58805925]
[1693398978991,8.4408,1719.3,1719.1,6.58805925]
[1693398979384,10.9203,1719.3,1719.1,6.58805925]
[1693398979787,0.00311949,1719.2,1719.1,6.58805925]
[1693398980385,0.00311949,1719.2,1719.1,1.52115925]
[1693398981788,0.00311949,1719.2,1719.0,1.98705485]
[1693398981988,5.233,1719.1,1719.0,1.98705485]
[1693398982181,5.233,1719.1,1719.0,4.89592363]
[1693398982787,5.2361224,1719.1,1719.0,4.89592363]
[1693398988994,5.2361224,1719.1,1719.0,5.65650326]
[1693398989992,8.4439224,1719.1,1718.9,0.00872575]
[1693398990193,5.233,1719.0,1718.9,0.00872575]
[1693398990401,7.7157,1719.0,1718.9,0.00872575]
[1693398990790,7.7188052,1719.0,1718.9,0.00872575]
[1693398991284,5.2361052,1719.0,1718.9,0.00872575]
[1693398991495,5.2361052,1719.0,1718.6,8.59072107]
[1693398991496,15.4177052,1719.0,1718.6,8.59072107]
[1693398991685,5.233,1718.7,1718.6,8.59072107]
[1693398991888,5.233,1718.7,1718.6,11.50032922]
[1693398992089,5.233,1718.7,1718.6,6.70972922]
[1693398992289,5.233,1718.7,1718.6,3.80012107]
[1693398992493,5.233,1718.7,1718.6,6.70972922]
[1693398992895,5.23607783,1718.7,1718.6,6.70972922]
[1693398993791,5.233,1718.7,1718.6,6.70950217]
[1693398994596,5.233,1718.7,1718.6,5.19134703]
[1693398994793,5.23608029,1718.7,1718.6,5.19134703]
[1693398995095,3.78129514,1718.7,1718.6,8.14255039]
[1693398995287,3.78129514,1718.7,1718.6,6.70896863]
[1693398995693,3.78129514,1718.7,1718.6,5.19134703]
[1693398995894,3.77821485,1718.7,1718.6,6.7090083]
[1693398996094,3.77821485,1718.7,1718.6,5.19134703]
[1693398997094,3.77821485,1718.7,1718.4,1.51780408]
[1693398997095,6.98601485,1718.7,1718.4,1.51780408]
[1693398997294,5.233,1718.5,1718.4,1.51780408]
[1693398997899,5.23606599,1718.5,1718.4,1.51780408]
[1693398998400,5.23606599,1718.5,1718.4,1.52653237]
[1693398999496,10.46906599,1718.5,1718.4,1.52653237]
[1693398999703,13.67686599,1718.5,1718.4,0.00872829]
[1693399002100,8.44386599,1718.5,1718.4,0.00872829]
[1693399004308,8.44386599,1718.5,1718.4,1.44231005]
[1693399008806,8.44386599,1718.5,1718.4,0.00872829]
[1693399027534,13.67686599,1718.5,1718.4,0.00872829]
[1693399027737,13.67686599,1718.5,1718.1,1.516308]
[1693399027933,8.4408,1718.2,1718.1,1.516308]
[1693399028534,8.4408,1718.2,1718.0,1.9815407]
[1693399028727,8.44384085,1718.2,1718.0,1.9815407]
[1693399028928,8.44384085,1718.2,1718.0,4.25600271]
[1693399029838,5.233,1718.1,1718.0,3.79077001]
[1693399030029,5.233,1718.1,1718.0,5.18517625]
[1693399030337,5.233,1718.1,1718.0,6.70506481]
[1693399030933,5.2360337,1718.1,1718.0,5.18517625]
[1693399031731,5.2360337,1718.1,1718.0,2.27446201]
[1693399032327,5.2360337,1718.1,1718.0,1.52059078]
[1693399032532,7.6896337,1718.1,1718.0,1.52059078]
[1693399033035,10.2715337,1718.1,1718.0,1.52059078]
[1693399033831,10.2715337,1718.1,1718.0,3.79505279]
[1693399034535,10.2715337,1718.1,1718.0,1.52059078]
[1693399039036,10.2715337,1718.1,1717.9,1.52932135]
[1693399039237,13.6738,1718.0,1717.7,1.52059078]
[1693399039438,8.4408,1717.8,1717.6,1.52059078]
[1693399039741,5.23600754,1717.7,1717.6,1.52059078]
[1693399040137,10.11710754,1717.7,1717.6,1.52059078]
[1693399040336,10.11710754,1717.7,1717.5,3.79505279]
[1693399040640,8.4408,1717.6,1717.5,1.52059078]
[1693399041241,8.4408,1717.6,1717.4,2.75194462]
[1693399041242,8.4408,1717.6,1717.4,1.99807339]
[1693399041436,5.233,1717.5,1717.4,1.99807339]
[1693399041742,5.23599446,1717.5,1717.4,4.90995521]
[1693399042236,7.72339446,1717.5,1717.4,4.90995521]
[1693399042436,7.72339446,1717.5,1717.4,4.4324726]
[1693399043034,7.72339446,1717.5,1717.4,6.70693461]
[1693399043229,7.72339446,1717.5,1717.4,4.4324726]
[1693399043837,5.23599446,1717.5,1717.4,4.4324726]
[1693399044346,7.88699446,1717.5,1717.4,1.52059078]
[1693399044847,13.11999446,1717.5,1717.4,1.52059078]
[1693399045046,13.11999446,1717.5,1717.2,7.94121601]
[1693399045047,13.11999446,1717.5,1717.2,4.9086]
[1693399045338,13.11999446,1717.5,1717.3,5.19199485]
[1693399045339,3.2078,1717.4,1717.3,5.19199485]
[1693399045543,9.5348626,1717.4,1717.3,5.19199485]
[1693399045945,9.53784744,1717.4,1717.3,6.71157938]
[1693399046342,9.53784744,1717.4,1717.3,4.43146197]
[1693399047444,9.53784744,1717.4,1717.3,1.51958453]
[1693399047643,9.53784744,1717.4,1717.3,4.43145]
[1693399047942,9.53784744,1717.4,1717.3,1.51958453]
[1693399049042,6.98784744,1717.4,1717.3,2.95316629]
[1693399049748,6.98784744,1717.4,1717.3,1.43358176]
[1693399050351,5.23598484,1717.4,1717.3,1.43358176]
[1693399051346,0.00298484,1717.4,1717.3,6.66658176]
[1693399051844,8.4408,1717.6,1717.3,6.66658176]
[1693399052047,8.4408,1717.6,1717.4,2.26993648]
[1693399052349,5.233,1717.7,1717.5,4.64138176]
[1693399052649,5.233,1717.9,1717.6,2.26993648]
[1693399052947,5.233,1717.9,1717.7,4.64138176]
[1693399055450,5.233,1717.9,1717.8,2.26993648]
[1693399056148,0.45512245,1718.1,1717.8,7.50293648]
[1693399056351,5.233,1718.2,1718.0,3.2078]
[1693399056650,5.233,1718.2,1718.0,5.47773648]
[1693399056846,5.233,1718.2,1718.1,1.43358176]
[1693399057043,5.233,1718.2,1718.0,5.47773648]
[1693399057551,5.233,1718.2,1718.0,6.91131824]
[1693399058744,5.233,1718.2,1718.0,3.70351824]
[1693399059654,5.233,1718.2,1718.0,2.26993648]
[1693399059948,5.233,1718.2,1717.9,2.5537]
[1693399060152,5.233,1718.2,1717.9,4.82363648]
[1693399060544,5.233,1718.2,1718.0,1.43358176]
[1693399061655,5.233,1718.2,1718.1,2.26993648]
[1693399063758,5.233,1718.2,1718.0,1.43358176]
[1693399063961,5.233,1718.1,1718.0,1.43358176]
[1693399064454,5.233,1718.1,1717.9,4.82363648]